[Event "Live Chess"]
[Site "Chess.com"]
[Date "2020.12.01"]
[Round "1"]
[White "vish1080"]
[Black "andrewaballantyne"]
[Result "1-0"]
[WhiteElo "1664"]
[BlackElo "948"]
[TimeControl "2100+2"]
[EndTime "19:16:50 PST"]
[Termination "vish1080 won by resignation"]

1. Nf3 {[%clk 0:35:01.9]} 1... Nc6 {[%clk 0:34:50.3]} 2. d4 {[%clk 0:34:58.3]}
2... d5 {[%clk 0:34:44.6]} 3. c4 {[%clk 0:34:58.4]} 3... e6 {[%clk 0:34:33.8]}
4. e3 {[%clk 0:34:57.1]} 4... Nf6 {[%clk 0:34:25.1]} 5. Nc3 {[%clk 0:34:54.5]}
5... Be7 {[%clk 0:34:02.9]} 6. Be2 {[%clk 0:34:53.6]} 6... O-O {[%clk
0:33:59.8]} 7. O-O {[%clk 0:34:52.9]} 7... Re8 {[%clk 0:33:32]} 8. Ne5 {[%clk
0:34:50.6]} 8... Bd6 {[%clk 0:33:12.2]} 9. f4 {[%clk 0:34:49.9]} 9... a6 {[%clk
0:27:56.9]} 10. c5 {[%clk 0:34:35]} 10... Be7 {[%clk 0:27:34.5]} 11. Bd3 {[%clk
0:34:29.8]} 11... Nb4 {[%clk 0:25:00.9]} 12. Bb1 {[%clk 0:33:56.6]} 12... Nc6
{[%clk 0:24:39.6]} 13. Rf3 {[%clk 0:33:47.1]} 13... h6 {[%clk 0:23:30.3]} 14. b3
{[%clk 0:32:27.5]} 14... Nh7 {[%clk 0:22:09]} 15. Bxh7+ {[%clk 0:32:15.1]} 15...
Kxh7 {[%clk 0:21:44.4]} 16. Nxf7 {[%clk 0:32:10.3]} 16... Qd7 {[%clk 0:21:22.1]}
17. Ne5 {[%clk 0:32:07.6]} 17... Qd8 {[%clk 0:20:44.5]} 18. Qd3+ {[%clk
0:31:59.6]} 18... Kg8 {[%clk 0:20:26.6]} 19. Bd2 {[%clk 0:31:51.5]} 19... Rf8
{[%clk 0:18:46.7]} 20. Raf1 {[%clk 0:31:43]} 20... Bh4 {[%clk 0:16:36.5]} 21.
Qg6 {[%clk 0:31:08.6]} 21... Qe7 {[%clk 0:15:16.4]} 22. Qh5 {[%clk 0:30:36.4]}
22... Rf5 {[%clk 0:13:45.5]} 23. Qg4 {[%clk 0:30:02.5]} 23... Nxe5 {[%clk
0:10:15.7]} 24. fxe5 {[%clk 0:29:28.3]} 24... Rg5 {[%clk 0:10:04.5]} 25. Rf8+
{[%clk 0:27:59.8]} 25... Kh7 {[%clk 0:09:47.9]} 26. Qf3 {[%clk 0:27:51.8]} 26...
Rg6 {[%clk 0:09:17.8]} 27. Qf7 {[%clk 0:26:43.7]} 27... Qxf7 {[%clk 0:09:06.9]}
28. R1xf7 {[%clk 0:26:45.6]} 28... c6 {[%clk 0:08:34]} 29. Re8 {[%clk
0:26:30.9]} 29... a5 {[%clk 0:07:44]} 30. Rff8 {[%clk 0:26:11]} 30... Rg5 {[%clk
0:06:42.7]} 31. Rxc8 {[%clk 0:25:59.7]} 31... Rxc8 {[%clk 0:06:38.3]} 32. Rxc8
{[%clk 0:26:01.6]} 32... Rf5 {[%clk 0:06:25.6]} 33. g3 {[%clk 0:26:00.6]} 33...
Bg5 {[%clk 0:06:07.3]} 34. Kg2 {[%clk 0:25:45.9]} 34... Be7 {[%clk 0:05:30.2]}
35. Re8 {[%clk 0:25:34.3]} 35... Bg5 {[%clk 0:05:11.3]} 36. h4 {[%clk
0:25:31.4]} 36... Bxh4 {[%clk 0:05:05]} 37. gxh4 {[%clk 0:25:33.3]} 1-0

[Event "Live Chess"]
[Site "Chess.com"]
[Date "2020.12.01"]
[Round "1"]
[White "TTVchessmaster"]
[Black "fastZachi"]
[Result "0-1"]
[WhiteElo "943"]
[BlackElo "1813"]
[TimeControl "2100+2"]
[EndTime "19:45:18 PST"]
[Termination "fastZachi won by checkmate"]

1. e4 {[%clk 0:34:58.6]} 1... c5 {[%clk 0:34:53.9]} 2. Nf3 {[%clk 0:34:52.9]}
2... e6 {[%clk 0:34:49.6]} 3. Be2 {[%clk 0:34:48.8]} 3... Nc6 {[%clk 0:34:42.8]}
4. d4 {[%clk 0:34:39.1]} 4... cxd4 {[%clk 0:34:32.8]} 5. Nxd4 {[%clk 0:34:38.6]}
5... Nf6 {[%clk 0:34:02.8]} 6. Nxc6 {[%clk 0:34:02.4]} 6... bxc6 {[%clk
0:33:56.3]} 7. Nc3 {[%clk 0:33:44.2]} 7... Bb4 {[%clk 0:29:24.5]} 8. Bg5 {[%clk
0:32:07.7]} 8... h6 {[%clk 0:29:03.6]} 9. Bh4 {[%clk 0:32:04.9]} 9... g5 {[%clk
0:25:28]} 10. Bg3 {[%clk 0:32:01.5]} 10... Qa5 {[%clk 0:25:07]} 11. Qd4 {[%clk
0:30:17.2]} 11... Be7 {[%clk 0:23:24.6]} 12. Be5 {[%clk 0:30:06.9]} 12... c5
{[%clk 0:23:06.5]} 13. Qe3 {[%clk 0:26:40.8]} 13... d6 {[%clk 0:22:32.8]} 14.
Bb5+ {[%clk 0:25:15.6]} 14... Kf8 {[%clk 0:20:52.9]} 15. Bxf6 {[%clk 0:24:42]}
15... Bxf6 {[%clk 0:20:42.6]} 16. Qf3 {[%clk 0:24:20.2]} 16... Bxc3+ {[%clk
0:19:17.1]} 17. Qxc3 {[%clk 0:24:14.2]} 17... Qxc3+ {[%clk 0:19:02.9]} 18. bxc3
{[%clk 0:24:13.6]} 18... Bb7 {[%clk 0:18:03.3]} 19. Bd3 {[%clk 0:23:22.1]} 19...
c4 {[%clk 0:16:52.9]} 20. Bxc4 {[%clk 0:23:18.9]} 20... Bxe4 {[%clk 0:16:51.4]}
21. O-O {[%clk 0:23:15.8]} 21... Bxc2 {[%clk 0:15:48.8]} 22. Rac1 {[%clk
0:23:12.6]} 22... Bg6 {[%clk 0:15:34.6]} 23. Rfd1 {[%clk 0:23:01.1]} 23... Ke7
{[%clk 0:15:21.4]} 24. Bd3 {[%clk 0:21:44.8]} 24... Bxd3 {[%clk 0:14:27.8]} 25.
Rxd3 {[%clk 0:21:43.5]} 25... Rab8 {[%clk 0:14:24.9]} 26. c4 {[%clk 0:21:15]}
26... Rhc8 {[%clk 0:12:12.6]} 27. Ra3 {[%clk 0:20:11.8]} 27... Rb7 {[%clk
0:11:15.8]} 28. g3 {[%clk 0:20:06.2]} 28... d5 {[%clk 0:09:55.6]} 29. c5 {[%clk
0:18:45.4]} 29... e5 {[%clk 0:08:44.6]} 30. c6 {[%clk 0:18:20]} 30... Rbc7
{[%clk 0:08:39.3]} 31. Rb3 {[%clk 0:18:19.6]} 31... Kd6 {[%clk 0:08:24.6]} 32.
Rf3 {[%clk 0:16:48.8]} 32... Ke6 {[%clk 0:07:58.5]} 33. Ra3 {[%clk 0:13:49.9]}
33... d4 {[%clk 0:06:30.6]} 34. Kf1 {[%clk 0:13:22.9]} 34... Rb8 {[%clk
0:05:48.4]} 35. f4 {[%clk 0:11:05.9]} 35... f6 {[%clk 0:05:07.3]} 36. fxe5
{[%clk 0:10:59.5]} 36... fxe5 {[%clk 0:05:05.9]} 37. Ra5 {[%clk 0:10:53.1]}
37... Kd6 {[%clk 0:04:35.1]} 38. Rcc5 {[%clk 0:09:26.3]} 38... Re8 {[%clk
0:03:41.8]} 39. Rd5+ {[%clk 0:07:46.4]} 39... Kxc6 {[%clk 0:03:40]} 40. Rac5+
{[%clk 0:07:32.8]} 40... Kb6 {[%clk 0:03:36.3]} 41. Rb5+ {[%clk 0:07:25.9]}
41... Kc6 {[%clk 0:03:29.3]} 42. Rbc5+ {[%clk 0:07:14.9]} 42... Kb7 {[%clk
0:03:24.6]} 43. Rb5+ {[%clk 0:07:13.5]} 43... Kc8 {[%clk 0:03:21.5]} 44. Rxe5
{[%clk 0:07:07.6]} 44... Rxe5 {[%clk 0:02:49.7]} 45. Rxe5 {[%clk 0:07:06.7]}
45... Rc2 {[%clk 0:02:42.3]} 46. Rd5 {[%clk 0:06:04.8]} 46... Rxa2 {[%clk
0:02:03.4]} 47. Rxd4 {[%clk 0:06:04.6]} 47... Rxh2 {[%clk 0:02:00.8]} 48. Ra4
{[%clk 0:06:03.5]} 48... Kb7 {[%clk 0:01:59.8]} 49. Rb4+ {[%clk 0:06:00.5]}
49... Kc6 {[%clk 0:01:49.4]} 50. Ra4 {[%clk 0:05:53.7]} 50... Kb6 {[%clk
0:01:44.2]} 51. Rb4+ {[%clk 0:05:19.4]} 51... Ka5 {[%clk 0:01:34.3]} 52. Rb3
{[%clk 0:05:19.5]} 52... a6 {[%clk 0:01:09.7]} 53. Kg1 {[%clk 0:05:12.7]} 53...
Rc2 {[%clk 0:01:08.4]} 54. Rb1 {[%clk 0:04:56]} 54... Rc4 {[%clk 0:01:00.6]} 55.
Kg2 {[%clk 0:04:48]} 55... Rb4 {[%clk 0:01:00.2]} 56. Ra1+ {[%clk 0:04:47.9]}
56... Kb5 {[%clk 0:01:00.7]} 57. Kh3 {[%clk 0:04:46]} 57... a5 {[%clk
0:00:58.3]} 58. Re1 {[%clk 0:04:45.4]} 58... Rc4 {[%clk 0:00:54.1]} 59. Rb1+
{[%clk 0:04:38.7]} 59... Kc5 {[%clk 0:00:53.3]} 60. Ra1 {[%clk 0:04:29.4]} 60...
a4 {[%clk 0:00:53.7]} 61. Ra3 {[%clk 0:04:28.4]} 61... Kb4 {[%clk 0:00:54.4]}
62. Ra1 {[%clk 0:04:23.3]} 62... a3 {[%clk 0:00:48.8]} 63. Re1 {[%clk
0:03:46.5]} 63... a2 {[%clk 0:00:45.1]} 64. Ra1 {[%clk 0:03:45.3]} 64... Kb3
{[%clk 0:00:45.7]} 65. Rxa2 {[%clk 0:03:41.9]} 65... Kxa2 {[%clk 0:00:46.4]} 66.
Kg2 {[%clk 0:03:43]} 66... Kb3 {[%clk 0:00:46.4]} 67. Kf3 {[%clk 0:03:44.1]}
67... Kc3 {[%clk 0:00:47.3]} 68. Ke3 {[%clk 0:03:43.6]} 68... Rg4 {[%clk
0:00:46.5]} 69. Kf3 {[%clk 0:03:42.3]} 69... h5 {[%clk 0:00:47.2]} 70. Kf2
{[%clk 0:03:38.1]} 70... Kd3 {[%clk 0:00:48.1]} 71. Kf3 {[%clk 0:03:38.1]} 71...
Re4 {[%clk 0:00:47.8]} 72. Kg2 {[%clk 0:03:36.3]} 72... g4 {[%clk 0:00:47.9]}
73. Kf2 {[%clk 0:03:34.4]} 73... Re2+ {[%clk 0:00:48.6]} 74. Kf1 {[%clk
0:03:33.9]} 74... Ke3 {[%clk 0:00:49.8]} 75. Kg1 {[%clk 0:03:34.5]} 75... Kf3
{[%clk 0:00:48.9]} 76. Kf1 {[%clk 0:03:35.6]} 76... Rg2 {[%clk 0:00:47.2]} 77.
Ke1 {[%clk 0:03:36.1]} 77... Rxg3 {[%clk 0:00:48.4]} 78. Kf1 {[%clk 0:03:37.4]}
78... Rg2 {[%clk 0:00:48.7]} 79. Ke1 {[%clk 0:03:38.5]} 79... Rh2 {[%clk
0:00:48.8]} 80. Kf1 {[%clk 0:03:39.7]} 80... Rh1# {[%clk 0:00:49]} 0-1

[Event "Live Chess"]
[Site "Chess.com"]
[Date "2020.12.01"]
[Round "1"]
[White "PlayerCreate1"]
[Black "sfdeals"]
[Result "1-0"]
[WhiteElo "1812"]
[BlackElo "931"]
[TimeControl "2100+2"]
[EndTime "19:17:30 PST"]
[Termination "PlayerCreate1 won by checkmate"]

1. e4 {[%clk 0:34:59.6]} 1... e5 {[%clk 0:34:56.7]} 2. Nf3 {[%clk 0:34:59.8]}
2... Nc6 {[%clk 0:34:56.5]} 3. Bc4 {[%clk 0:34:59.8]} 3... Bc5 {[%clk
0:34:55.3]} 4. O-O {[%clk 0:35:00]} 4... d6 {[%clk 0:34:33]} 5. c3 {[%clk
0:34:58.5]} 5... Nf6 {[%clk 0:33:33]} 6. Re1 {[%clk 0:34:47.3]} 6... O-O {[%clk
0:32:45.8]} 7. h3 {[%clk 0:34:46.1]} 7... h6 {[%clk 0:32:05]} 8. a4 {[%clk
0:34:35.8]} 8... Re8 {[%clk 0:31:40]} 9. b4 {[%clk 0:34:34.6]} 9... Bxb4 {[%clk
0:24:33.3]} 10. cxb4 {[%clk 0:34:32.4]} 10... Nxb4 {[%clk 0:24:27.4]} 11. Qb3
{[%clk 0:34:33]} 11... d5 {[%clk 0:23:32.3]} 12. exd5 {[%clk 0:34:18.1]} 12...
Nbxd5 {[%clk 0:22:31]} 13. Nxe5 {[%clk 0:34:10.7]} 13... c6 {[%clk 0:15:31.3]}
14. Bb2 {[%clk 0:33:59.2]} 14... Qc7 {[%clk 0:14:54.6]} 15. d4 {[%clk
0:33:52.5]} 15... Be6 {[%clk 0:14:11.8]} 16. Nd2 {[%clk 0:33:20]} 16... Rad8
{[%clk 0:13:26.8]} 17. Rac1 {[%clk 0:33:18.9]} 17... Nf4 {[%clk 0:12:37.5]} 18.
Bxe6 {[%clk 0:33:03.3]} 18... Nxe6 {[%clk 0:12:22.3]} 19. Ndf3 {[%clk
0:33:02.5]} 19... Nd5 {[%clk 0:11:42.3]} 20. g3 {[%clk 0:32:40.6]} 20... Qb6
{[%clk 0:10:46.9]} 21. Qc2 {[%clk 0:32:09]} 21... Nf6 {[%clk 0:09:33.8]} 22. Rb1
{[%clk 0:32:01]} 22... Qc7 {[%clk 0:08:52.8]} 23. Qf5 {[%clk 0:31:56.8]} 23...
Qe7 {[%clk 0:08:12.7]} 24. Re3 {[%clk 0:31:27.6]} 24... Rd5 {[%clk 0:06:53.9]}
25. Rbe1 {[%clk 0:31:23.7]} 25... Red8 {[%clk 0:05:50.6]} 26. Ba3 {[%clk
0:31:14.8]} 26... Qe8 {[%clk 0:04:50.8]} 27. Kg2 {[%clk 0:30:58.8]} 27... a6
{[%clk 0:04:15.5]} 28. Qb1 {[%clk 0:30:46.1]} 28... b5 {[%clk 0:04:01]} 29. axb5
{[%clk 0:30:40.1]} 29... cxb5 {[%clk 0:03:53.3]} 30. Qa2 {[%clk 0:30:34.6]}
30... a5 {[%clk 0:03:03.6]} 31. Bc5 {[%clk 0:30:28.4]} 31... a4 {[%clk 0:02:29]}
32. Nxf7 {[%clk 0:30:28]} 32... Kxf7 {[%clk 0:01:41.8]} 33. Rxe6 {[%clk
0:30:27.8]} 33... Qxe6 {[%clk 0:01:36.5]} 34. Rxe6 {[%clk 0:30:28.1]} 34... Kxe6
{[%clk 0:01:37.5]} 35. Qe2+ {[%clk 0:30:22.2]} 35... Kf7 {[%clk 0:01:16.7]} 36.
Ne5+ {[%clk 0:30:19]} 36... Kg8 {[%clk 0:01:01]} 37. Qxb5 {[%clk 0:30:17.5]}
37... a3 {[%clk 0:00:56.7]} 38. Qb3 {[%clk 0:30:05.5]} 38... Ne4 {[%clk
0:00:44.8]} 39. Bxa3 {[%clk 0:30:01.2]} 39... Kh8 {[%clk 0:00:29.2]} 40. Nf7+
{[%clk 0:29:57.8]} 40... Kh7 {[%clk 0:00:29.2]} 41. Nxd8 {[%clk 0:29:57.8]}
41... Rxd8 {[%clk 0:00:30.2]} 42. Qd3 {[%clk 0:29:58.6]} 42... Re8 {[%clk
0:00:30]} 43. f3 {[%clk 0:29:59.8]} 43... g6 {[%clk 0:00:30.8]} 44. fxe4 {[%clk
0:30:00.8]} 44... Kg7 {[%clk 0:00:31.4]} 45. d5 {[%clk 0:30:00]} 45... Kf7
{[%clk 0:00:31.7]} 46. Qf3+ {[%clk 0:29:56.7]} 46... Kg7 {[%clk 0:00:31]} 47.
Bb2+ {[%clk 0:29:56.9]} 47... Kg8 {[%clk 0:00:30.9]} 48. Qf6 {[%clk 0:29:57.5]}
48... Re7 {[%clk 0:00:27.1]} 49. Qxe7 {[%clk 0:29:49.5]} 49... g5 {[%clk
0:00:23.3]} 50. Qg7# {[%clk 0:29:49.7]} 1-0

[Event "Live Chess"]
[Site "Chess.com"]
[Date "2020.12.01"]
[Round "1"]
[White "adichi"]
[Black "dashrndrx"]
[Result "0-1"]
[WhiteElo "749"]
[BlackElo "1803"]
[TimeControl "2100+2"]
[EndTime "19:21:52 PST"]
[Termination "dashrndrx won by checkmate"]

1. d4 {[%clk 0:34:38.1]} 1... f5 {[%clk 0:34:59.6]} 2. Bf4 {[%clk 0:34:35.8]}
2... Nf6 {[%clk 0:34:52]} 3. e3 {[%clk 0:34:21.5]} 3... g6 {[%clk 0:34:39.3]} 4.
Nf3 {[%clk 0:34:13.4]} 4... Bg7 {[%clk 0:34:22]} 5. c3 {[%clk 0:33:53.7]} 5...
O-O {[%clk 0:33:35.1]} 6. Bc4+ {[%clk 0:32:59.3]} 6... d5 {[%clk 0:28:22.8]} 7.
Be2 {[%clk 0:32:48.9]} 7... Nbd7 {[%clk 0:27:29.8]} 8. Nbd2 {[%clk 0:32:33.6]}
8... Ne4 {[%clk 0:27:01.1]} 9. Nxe4 {[%clk 0:32:05.3]} 9... fxe4 {[%clk
0:26:05.9]} 10. Ne5 {[%clk 0:31:37]} 10... Nxe5 {[%clk 0:25:24.6]} 11. dxe5
{[%clk 0:31:01.9]} 11... c6 {[%clk 0:24:09.6]} 12. h4 {[%clk 0:30:57]} 12... h6
{[%clk 0:23:48.8]} 13. g4 {[%clk 0:30:32.7]} 13... Qd7 {[%clk 0:22:19.3]} 14.
Rg1 {[%clk 0:29:38]} 14... Qe6 {[%clk 0:21:52.4]} 15. g5 {[%clk 0:29:26.6]}
15... h5 {[%clk 0:21:36.6]} 16. Bxh5 {[%clk 0:29:08.6]} 16... gxh5 {[%clk
0:21:12.7]} 17. Qxh5 {[%clk 0:29:01.4]} 17... Rf5 {[%clk 0:18:58.8]} 18. Qe2
{[%clk 0:28:31.8]} 18... Bxe5 {[%clk 0:18:41.2]} 19. Bxe5 {[%clk 0:28:28.4]}
19... Qxe5 {[%clk 0:18:23.3]} 20. Qh5 {[%clk 0:28:23]} 20... Bd7 {[%clk
0:17:09.6]} 21. Qg6+ {[%clk 0:27:44.2]} 21... Qg7 {[%clk 0:17:00.5]} 22. Qh5
{[%clk 0:27:18.8]} 22... Raf8 {[%clk 0:16:21.3]} 23. O-O-O {[%clk 0:26:52.6]}
23... Rxf2 {[%clk 0:15:29.7]} 24. g6 {[%clk 0:23:03.4]} 24... b5 {[%clk
0:12:58.4]} 25. Qg5 {[%clk 0:22:35.8]} 25... R8f5 {[%clk 0:10:50.9]} 26. Qg3
{[%clk 0:20:45.1]} 26... Qe5 {[%clk 0:09:43.9]} 27. Qh3 {[%clk 0:20:22.2]} 27...
Rh2 {[%clk 0:08:26]} 28. Qg4 {[%clk 0:19:53.6]} 28... Rff2 {[%clk 0:07:53.1]}
29. Qg5 {[%clk 0:17:11.9]} 29... Rc2+ {[%clk 0:07:40.6]} 30. Kb1 {[%clk
0:17:06.6]} 30... Rxb2+ {[%clk 0:07:40.2]} 31. Ka1 {[%clk 0:17:06.7]} 31...
Rxa2+ {[%clk 0:07:38.6]} 32. Kb1 {[%clk 0:17:07.9]} 32... Rhb2+ {[%clk 0:07:36]}
33. Kc1 {[%clk 0:17:09.4]} 33... Qxc3# {[%clk 0:07:36.5]} 0-1

[Event "Live Chess"]
[Site "Chess.com"]
[Date "2020.12.01"]
[Round "1"]
[White "chessappeals"]
[Black "SebbyMeister"]
[Result "1/2-1/2"]
[WhiteElo "1783"]
[BlackElo "691"]
[TimeControl "2100+2"]
[EndTime "19:39:50 PST"]
[Termination "Game drawn by agreement"]

1. d4 {[%clk 0:35:00.9]} 1... d5 {[%clk 0:34:52.5]} 2. Nf3 {[%clk 0:34:59.1]}
2... Nf6 {[%clk 0:34:47.8]} 3. e3 {[%clk 0:34:51.5]} 3... Bf5 {[%clk 0:34:26]}
4. c4 {[%clk 0:34:20.2]} 4... c6 {[%clk 0:33:50.3]} 5. Nc3 {[%clk 0:33:03.2]}
5... e6 {[%clk 0:32:37.3]} 6. cxd5 {[%clk 0:31:35]} 6... exd5 {[%clk 0:31:33.4]}
7. Bd3 {[%clk 0:30:45.5]} 7... Bg6 {[%clk 0:31:07.9]} 8. O-O {[%clk 0:29:44.6]}
8... Be7 {[%clk 0:30:18.6]} 9. b3 {[%clk 0:28:19.4]} 9... O-O {[%clk 0:28:42.1]}
10. Bxg6 {[%clk 0:27:26.9]} 10... hxg6 {[%clk 0:28:34.6]} 11. Ne5 {[%clk
0:24:56.2]} 11... Nbd7 {[%clk 0:26:03.6]} 12. Nxd7 {[%clk 0:24:11.9]} 12... Qxd7
{[%clk 0:25:38.5]} 13. Qf3 {[%clk 0:21:49.4]} 13... Bb4 {[%clk 0:23:36]} 14. Bb2
{[%clk 0:21:14.3]} 14... Bxc3 {[%clk 0:22:56.8]} 15. Bxc3 {[%clk 0:20:40.2]}
15... Rfe8 {[%clk 0:22:01.8]} 16. Bb2 {[%clk 0:19:21.8]} 16... Re4 {[%clk
0:20:56.6]} 17. h3 {[%clk 0:16:04.4]} 17... Rae8 {[%clk 0:18:31.6]} 18. Kh2
{[%clk 0:14:39.5]} 18... Qc7+ {[%clk 0:16:20.6]} 19. Qg3 {[%clk 0:13:14.2]}
19... Qxg3+ {[%clk 0:14:56.7]} 20. Kxg3 {[%clk 0:12:58.9]} 20... Nd7 {[%clk
0:14:21.9]} 21. Kh2 {[%clk 0:12:35.9]} 21... Nb8 {[%clk 0:13:58.8]} 22. Ba3
{[%clk 0:12:07.8]} 22... f6 {[%clk 0:13:41]} 23. Rac1 {[%clk 0:11:11.1]} 23...
Na6 {[%clk 0:13:29.3]} 24. Rc2 {[%clk 0:10:37.2]} 24... Kf7 {[%clk 0:13:18.4]}
25. Rfc1 {[%clk 0:09:51.2]} 25... f5 {[%clk 0:12:31.4]} 26. Bd6 {[%clk
0:06:57.6]} 26... R4e6 {[%clk 0:11:31.6]} 27. Be5 {[%clk 0:06:00.3]} 27... R8e7
{[%clk 0:10:39.5]} 28. a3 {[%clk 0:05:34.1]} 28... Nc7 {[%clk 0:10:10.7]} 29.
Bxc7 {[%clk 0:04:59.2]} 29... Rxc7 {[%clk 0:10:11.1]} 30. g3 {[%clk 0:04:05.5]}
30... g5 {[%clk 0:10:04.7]} 31. b4 {[%clk 0:03:19.5]} 31... b5 {[%clk
0:09:37.9]} 32. Kg2 {[%clk 0:02:42.3]} 32... Ke7 {[%clk 0:09:33.4]} 33. Kf1
{[%clk 0:02:26.5]} 33... Kd6 {[%clk 0:09:33.2]} 34. Re2 {[%clk 0:02:10.8]} 34...
g6 {[%clk 0:09:22]} 35. Rce1 {[%clk 0:01:54]} 35... Rce7 {[%clk 0:09:20.6]} 36.
Kg2 {[%clk 0:01:46.8]} 36... Kc7 {[%clk 0:09:20.6]} 37. h4 {[%clk 0:01:25]}
37... g4 {[%clk 0:09:11.9]} 38. Rc2 {[%clk 0:01:21]} 38... Kb6 {[%clk
0:09:11.8]} 39. Rec1 {[%clk 0:01:16.9]} 39... a6 {[%clk 0:09:02.2]} 40. Rc3
{[%clk 0:01:16.4]} 40... Re8 {[%clk 0:09:00]} 41. R1c2 {[%clk 0:01:15.8]} 41...
Rh8 {[%clk 0:08:58.9]} 42. Rc1 {[%clk 0:01:15.8]} 42... Rh5 {[%clk 0:08:59.4]}
43. Rh1 {[%clk 0:01:13.9]} 43... Kb7 {[%clk 0:08:57.2]} 44. Rcc1 {[%clk
0:01:12.1]} 44... Re7 {[%clk 0:08:54.3]} 45. Rc2 {[%clk 0:01:09.1]} 45... Kb6
{[%clk 0:08:55.3]} 46. Rcc1 {[%clk 0:01:09.9]} 46... Re6 {[%clk 0:08:55]} 47.
Rc2 {[%clk 0:01:10.6]} 47... Re7 {[%clk 0:08:49.2]} 48. Rhc1 {[%clk 0:01:10.1]}
48... Re6 {[%clk 0:08:49.4]} 49. Rh1 {[%clk 0:01:10.6]} 49... Rd6 {[%clk
0:08:41.7]} 50. Rcc1 {[%clk 0:01:09.3]} 50... Rd7 {[%clk 0:08:41.6]} 51. Rc2
{[%clk 0:01:09.9]} 51... Rh6 {[%clk 0:08:39.1]} 52. Rhc1 {[%clk 0:01:09.9]}
52... Rd6 {[%clk 0:08:39.2]} 53. Rh1 {[%clk 0:01:09.6]} 53... Rh5 {[%clk
0:08:39.9]} 54. Rhc1 {[%clk 0:01:09.9]} 54... g5 {[%clk 0:08:40.1]} 55. hxg5
{[%clk 0:01:05.4]} 55... Rxg5 {[%clk 0:08:42]} 56. Rh1 {[%clk 0:01:04.7]} 56...
Rgg6 {[%clk 0:08:34.2]} 57. Rcc1 {[%clk 0:01:04.1]} 57... Rh6 {[%clk 0:08:34.6]}
58. Rxh6 {[%clk 0:01:03.4]} 58... Rxh6 {[%clk 0:08:36.5]} 59. Rh1 {[%clk
0:01:01.2]} 59... Rf6 {[%clk 0:08:34.6]} 60. Rh5 {[%clk 0:00:59.6]} 60... a5
{[%clk 0:08:35.1]} 61. Rh1 {[%clk 0:00:58]} 61... a4 {[%clk 0:08:24.2]} 62. Rh5
{[%clk 0:00:57.6]} 62... Kc7 {[%clk 0:08:24.7]} 63. f3 {[%clk 0:00:57.2]} 63...
gxf3+ {[%clk 0:08:22.3]} 64. Kxf3 {[%clk 0:00:57.9]} 64... Kd6 {[%clk
0:08:23.7]} 65. Kf4 {[%clk 0:00:58.1]} 65... Ke6 {[%clk 0:08:25]} 66. Rg5 {[%clk
0:00:57.2]} 66... Rf7 {[%clk 0:08:25.2]} 67. Rh5 {[%clk 0:00:56.7]} 67... Rf6
{[%clk 0:08:22.9]} 68. Rg5 {[%clk 0:00:57.5]} 1/2-1/2

[Event "Live Chess"]
[Site "Chess.com"]
[Date "2020.12.01"]
[Round "1"]
[White "ComfyQueso"]
[Black "15953392"]
[Result "1/2-1/2"]
[WhiteElo "662"]
[BlackElo "1184"]
[TimeControl "2100+2"]
[EndTime "18:59:39 PST"]
[Termination "Game drawn by repetition"]

1. d4 {[%clk 0:34:56.3]} 1... g6 {[%clk 0:34:53.1]} 2. e4 {[%clk 0:34:56.2]}
2... Bg7 {[%clk 0:34:53]} 3. Nf3 {[%clk 0:34:54.3]} 3... d6 {[%clk 0:34:51.6]}
4. Nc3 {[%clk 0:34:53.8]} 4... Bg4 {[%clk 0:34:51]} 5. Be2 {[%clk 0:34:53.4]}
5... Bxf3 {[%clk 0:34:49.3]} 6. Bxf3 {[%clk 0:34:53.7]} 6... Nd7 {[%clk
0:34:50.3]} 7. O-O {[%clk 0:34:43.2]} 7... Ngf6 {[%clk 0:34:50.1]} 8. Bg5 {[%clk
0:34:40.9]} 8... O-O {[%clk 0:34:49.9]} 9. Qd2 {[%clk 0:34:31.4]} 9... e6 {[%clk
0:34:39.7]} 10. Bh6 {[%clk 0:34:27.8]} 10... c5 {[%clk 0:34:35.5]} 11. Bxg7
{[%clk 0:34:22]} 11... Kxg7 {[%clk 0:34:35.3]} 12. d5 {[%clk 0:34:05.8]} 12...
e5 {[%clk 0:34:20.2]} 13. Nb5 {[%clk 0:33:42]} 13... Nb6 {[%clk 0:34:13]} 14.
Qa5 {[%clk 0:33:31.1]} 14... a6 {[%clk 0:33:12.2]} 15. Nc3 {[%clk 0:33:00.2]}
15... Nc4 {[%clk 0:33:01.3]} 16. Qxd8 {[%clk 0:32:48.6]} 16... Rfxd8 {[%clk
0:32:59.7]} 17. Rab1 {[%clk 0:32:41.9]} 17... Nd2 {[%clk 0:32:55.9]} 18. Rbd1
{[%clk 0:32:29.8]} 18... Nxf1 {[%clk 0:32:55.7]} 19. Rxf1 {[%clk 0:32:30]} 19...
b5 {[%clk 0:32:54.6]} 20. h3 {[%clk 0:32:14.1]} 20... b4 {[%clk 0:32:55]} 21.
Na4 {[%clk 0:32:13.5]} 21... Rab8 {[%clk 0:32:52.7]} 22. Be2 {[%clk 0:32:07.2]}
22... a5 {[%clk 0:32:51.3]} 23. f3 {[%clk 0:31:42.3]} 23... Nd7 {[%clk
0:31:10.4]} 24. b3 {[%clk 0:31:18.8]} 24... Nb6 {[%clk 0:30:58.8]} 25. Nb2
{[%clk 0:31:10]} 25... Ra8 {[%clk 0:30:53.7]} 26. Bb5 {[%clk 0:31:03]} 26...
Rab8 {[%clk 0:30:33.2]} 27. Bc6 {[%clk 0:30:55.8]} 27... Nc8 {[%clk 0:30:25.6]}
28. g4 {[%clk 0:30:07.9]} 28... Ne7 {[%clk 0:30:24.3]} 29. Ba4 {[%clk
0:29:58.1]} 29... h6 {[%clk 0:30:07.1]} 30. Nc4 {[%clk 0:29:56.5]} 30... Ra8
{[%clk 0:29:04.3]} 31. Bb5 {[%clk 0:29:42.7]} 31... Rab8 {[%clk 0:28:37.9]} 32.
Ba4 {[%clk 0:29:20.7]} 32... Ra8 {[%clk 0:28:30.8]} 33. Bb5 {[%clk 0:29:19]}
33... Ra7 {[%clk 0:28:26.8]} 34. Kg2 {[%clk 0:28:45]} 34... Kf8 {[%clk
0:27:50.2]} 35. Rf2 {[%clk 0:28:24.3]} 35... Rb7 {[%clk 0:27:44]} 36. Ba6 {[%clk
0:27:31.4]} 36... Ra7 {[%clk 0:27:40.9]} 37. Bb5 {[%clk 0:27:26.6]} 37... Nc8
{[%clk 0:27:25]} 38. Kh2 {[%clk 0:26:40.9]} 38... Ne7 {[%clk 0:26:56.6]} 39. Kg2
{[%clk 0:26:26.2]} 1/2-1/2